[Event "*** Titled Tuesday Blitz"]
[Site "Chess.com"]
[Date "2021.03.02"]
[Round "6"]
[White "Firouzja2003"]
[Black "Aygehovit1992"]
[Result "1-0"]
[WhiteElo "3128"]
[BlackElo "2633"]
[TimeControl "180+1"]
[EndTime "11:05:27 PST"]
[Termination "Firouzja2003 won by checkmate"]

1. d4 {[%clk 0:03:00.9]} 1... Nf6 {[%clk 0:02:58.8]} 2. Bg5 {[%clk 0:03:00.6]}
2... Ne4 {[%clk 0:02:56.8]} 3. Bf4 {[%clk 0:03:00]} 3... d5 {[%clk 0:02:53.6]}
4. f3 {[%clk 0:02:59.8]} 4... Nf6 {[%clk 0:02:53.6]} 5. Nc3 {[%clk 0:03:00.7]}
5... e6 {[%clk 0:02:53]} 6. e4 {[%clk 0:03:00.3]} 6... Bb4 {[%clk 0:02:53.1]} 7.
Bd3 {[%clk 0:03:00.6]} 7... c5 {[%clk 0:02:51.7]} 8. dxc5 {[%clk 0:02:46.3]}
8... Nbd7 {[%clk 0:02:49.8]} 9. Ne2 {[%clk 0:02:34.9]} 9... Nxc5 {[%clk
0:02:48.9]} 10. O-O {[%clk 0:02:34.3]} 10... dxe4 {[%clk 0:02:40.6]} 11. fxe4
{[%clk 0:02:34.1]} 11... Ba5 {[%clk 0:02:09.1]} 12. Bg5 {[%clk 0:02:31.7]} 12...
h6 {[%clk 0:02:07.4]} 13. Bxf6 {[%clk 0:02:30.9]} 13... gxf6 {[%clk 0:02:08.3]}
14. Kh1 {[%clk 0:02:31.8]} 14... a6 {[%clk 0:02:01.9]} 15. Ng3 {[%clk 0:02:32]}
15... h5 {[%clk 0:01:39]} 16. Nxh5 {[%clk 0:02:23.2]} 16... Qd6 {[%clk
0:01:23.2]} 17. Qf3 {[%clk 0:02:17.1]} 17... Bd8 {[%clk 0:00:55.4]} 18. Qh3
{[%clk 0:02:02.8]} 18... Qf8 {[%clk 0:00:36]} 19. Rad1 {[%clk 0:02:00.6]} 19...
Bd7 {[%clk 0:00:35.6]} 20. Be2 {[%clk 0:01:58.9]} 20... Be7 {[%clk 0:00:32.8]}
21. Qg3 {[%clk 0:01:55.7]} 21... O-O-O {[%clk 0:00:31.4]} 22. b4 {[%clk
0:01:54.7]} 22... Na4 {[%clk 0:00:25.2]} 23. Nxa4 {[%clk 0:01:53.3]} 23... Bxa4
{[%clk 0:00:26.1]} 24. Rd3 {[%clk 0:01:53.2]} 24... Rxd3 {[%clk 0:00:24.8]} 25.
cxd3 {[%clk 0:01:54.1]} 25... Bc6 {[%clk 0:00:24]} 26. d4 {[%clk 0:01:52.3]}
26... Bxb4 {[%clk 0:00:21.5]} 27. d5 {[%clk 0:01:51.8]} 27... exd5 {[%clk
0:00:14.2]} 28. exd5 {[%clk 0:01:52.7]} 28... Bxd5 {[%clk 0:00:14.8]} 29. Rc1+
{[%clk 0:01:51]} 29... Bc6 {[%clk 0:00:09]} 30. Bg4+ {[%clk 0:01:50.9]} 30... f5
{[%clk 0:00:08.1]} 31. Bxf5+ {[%clk 0:01:51.1]} 31... Kd8 {[%clk 0:00:07.6]} 32.
Rd1+ {[%clk 0:01:51.7]} 32... Ke7 {[%clk 0:00:04]} 33. Qe5# {[%clk 0:01:51.4]}
1-0

[Event "*** Titled Tuesday Blitz"]
[Site "Chess.com"]
[Date "2021.03.02"]
[Round "6"]
[White "Azeryahu"]
[Black "MITerryble"]
[Result "1/2-1/2"]
[WhiteElo "2734"]
[BlackElo "2919"]
[TimeControl "180+1"]
[EndTime "11:05:28 PST"]
[Termination "Game drawn by repetition"]

1. d4 {[%clk 0:03:00.9]} 1... e6 {[%clk 0:03:00.1]} 2. e4 {[%clk 0:03:01.5]}
2... d5 {[%clk 0:02:59.6]} 3. exd5 {[%clk 0:03:02.4]} 3... exd5 {[%clk
0:02:59.8]} 4. Nf3 {[%clk 0:03:03]} 4... Nc6 {[%clk 0:02:59.8]} 5. Bb5 {[%clk
0:03:02]} 5... Bd6 {[%clk 0:02:59.7]} 6. c4 {[%clk 0:03:02]} 6... dxc4 {[%clk
0:02:59.9]} 7. d5 {[%clk 0:03:02]} 7... a6 {[%clk 0:03:00]} 8. Ba4 {[%clk
0:03:00.8]} 8... b5 {[%clk 0:02:59.9]} 9. dxc6 {[%clk 0:03:00.5]} 9... bxa4
{[%clk 0:02:59.9]} 10. O-O {[%clk 0:03:00]} 10... Ne7 {[%clk 0:02:57.5]} 11.
Qxa4 {[%clk 0:02:59.4]} 11... O-O {[%clk 0:02:49.3]} 12. Nbd2 {[%clk 0:02:54.5]}
12... Rb8 {[%clk 0:02:43.1]} 13. a3 {[%clk 0:02:40.5]} 13... c3 {[%clk
0:02:30.8]} 14. bxc3 {[%clk 0:02:38.8]} 14... Qe8 {[%clk 0:02:20.7]} 15. Nc4
{[%clk 0:02:32.1]} 15... Qxc6 {[%clk 0:01:45]} 16. Qxc6 {[%clk 0:02:31.3]} 16...
Nxc6 {[%clk 0:01:45.9]} 17. Nxd6 {[%clk 0:02:31.4]} 17... cxd6 {[%clk
0:01:46.8]} 18. Bf4 {[%clk 0:02:31.7]} 18... Rd8 {[%clk 0:01:43.5]} 19. Rfd1
{[%clk 0:02:29.8]} 19... Rb3 {[%clk 0:01:40.2]} 20. Bxd6 {[%clk 0:01:56.7]}
20... Rxc3 {[%clk 0:01:14.5]} 21. Ne5 {[%clk 0:01:54.7]} 21... Re8 {[%clk
0:00:52.5]} 22. Nxc6 {[%clk 0:01:50.2]} 22... Rxc6 {[%clk 0:00:53.4]} 23. Rac1
{[%clk 0:01:50]} 23... Rxc1 {[%clk 0:00:48.9]} 24. Rxc1 {[%clk 0:01:50.9]} 24...
f6 {[%clk 0:00:47.3]} 25. f3 {[%clk 0:01:49.8]} 25... Bf5 {[%clk 0:00:47.1]} 26.
Kf2 {[%clk 0:01:47.4]} 26... Bd3 {[%clk 0:00:47.1]} 27. Re1 {[%clk 0:01:44.3]}
27... Rd8 {[%clk 0:00:39.5]} 28. Bb4 {[%clk 0:01:42.7]} 28... Rd7 {[%clk
0:00:37.8]} 29. Rd1 {[%clk 0:01:40.4]} 29... Kf7 {[%clk 0:00:35.9]} 30. Ke3
{[%clk 0:01:40.3]} 30... Bb5 {[%clk 0:00:34.4]} 31. Rxd7+ {[%clk 0:01:40.8]}
31... Bxd7 {[%clk 0:00:35.3]} 32. h4 {[%clk 0:01:41.1]} 32... h5 {[%clk
0:00:34.6]} 33. Kf4 {[%clk 0:01:40.3]} 33... Ke6 {[%clk 0:00:34.3]} 34. Bf8
{[%clk 0:01:40]} 34... g6 {[%clk 0:00:34.5]} 35. Bb4 {[%clk 0:01:40.5]} 35...
Bb5 {[%clk 0:00:34.6]} 36. Bc3 {[%clk 0:01:40.7]} 36... Bf1 {[%clk 0:00:34.4]}
37. g4 {[%clk 0:01:41]} 37... Be2 {[%clk 0:00:33.2]} 38. gxh5 {[%clk 0:01:39.6]}
38... gxh5 {[%clk 0:00:34.1]} 39. Bb2 {[%clk 0:01:40]} 39... Bd1 {[%clk
0:00:34]} 40. Bc3 {[%clk 0:01:40.2]} 40... Be2 {[%clk 0:00:33.6]} 41. Bb2 {[%clk
0:01:40.6]} 41... Bd1 {[%clk 0:00:33.9]} 42. Bc3 {[%clk 0:01:41.1]} 42... Be2
{[%clk 0:00:33.8]} 1/2-1/2

[Event "*** Titled Tuesday Blitz"]
[Site "Chess.com"]
[Date "2021.03.02"]
[Round "6"]
[White "sau6on"]
[Black "Sergey85Rodchenkov"]
[Result "1/2-1/2"]
[WhiteElo "2582"]
[BlackElo "2476"]
[TimeControl "180+1"]
[EndTime "11:05:30 PST"]
[Termination "Game drawn by repetition"]

1. e4 {[%clk 0:03:00.9]} 1... c5 {[%clk 0:02:59.5]} 2. Nf3 {[%clk 0:02:57.1]}
2... d6 {[%clk 0:02:59.3]} 3. d4 {[%clk 0:02:56.8]} 3... cxd4 {[%clk 0:02:59.9]}
4. Nxd4 {[%clk 0:02:57.5]} 4... Nf6 {[%clk 0:03:00.3]} 5. Nc3 {[%clk 0:02:57.9]}
5... a6 {[%clk 0:03:00.9]} 6. Bc4 {[%clk 0:02:56.2]} 6... e6 {[%clk 0:03:00.8]}
7. a4 {[%clk 0:02:55.5]} 7... Be7 {[%clk 0:02:59.8]} 8. O-O {[%clk 0:02:54.7]}
8... O-O {[%clk 0:02:59.5]} 9. Be3 {[%clk 0:02:51.8]} 9... Qc7 {[%clk
0:02:55.8]} 10. Qe2 {[%clk 0:02:51.2]} 10... Nbd7 {[%clk 0:02:53.1]} 11. g4
{[%clk 0:02:34.9]} 11... Ne5 {[%clk 0:02:51.9]} 12. Bb3 {[%clk 0:02:32]} 12...
Nexg4 {[%clk 0:02:48.5]} 13. Bg5 {[%clk 0:02:23.5]} 13... Qc5 {[%clk 0:02:35.7]}
14. Nf3 {[%clk 0:02:15]} 14... Ne5 {[%clk 0:02:33.9]} 15. Be3 {[%clk 0:02:09]}
15... Nxf3+ {[%clk 0:02:31.1]} 16. Qxf3 {[%clk 0:02:08.3]} 16... Qh5 {[%clk
0:02:29.3]} 17. Qg3 {[%clk 0:01:57.2]} 17... Bd7 {[%clk 0:02:12.2]} 18. f3
{[%clk 0:01:53.3]} 18... Qg6 {[%clk 0:02:05.2]} 19. Kf2 {[%clk 0:01:44.9]} 19...
Nh5 {[%clk 0:01:52.9]} 20. Qxg6 {[%clk 0:01:43.6]} 20... hxg6 {[%clk 0:01:52.6]}
21. a5 {[%clk 0:01:31.1]} 21... Rfc8 {[%clk 0:01:51.9]} 22. Na4 {[%clk 0:01:28]}
22... Bxa4 {[%clk 0:01:49.1]} 23. Rxa4 {[%clk 0:01:25.9]} 23... Nf6 {[%clk
0:01:27]} 24. Rb4 {[%clk 0:01:16.7]} 24... Rc7 {[%clk 0:01:02.6]} 25. Bb6 {[%clk
0:00:56.4]} 25... Rcc8 {[%clk 0:01:02.2]} 26. Be3 {[%clk 0:00:38.9]} 26... Rc7
{[%clk 0:01:02.2]} 27. Bb6 {[%clk 0:00:37.6]} 27... Rcc8 {[%clk 0:01:01.7]} 28.
Be3 {[%clk 0:00:37.5]} 1/2-1/2

[Event "*** Titled Tuesday Blitz"]
[Site "Chess.com"]
[Date "2021.03.02"]
[Round "6"]
[White "Snowflake"]
[Black "andriipalchuk"]
[Result "0-1"]
[WhiteElo "2352"]
[BlackElo "2546"]
[TimeControl "180+1"]
[EndTime "11:05:38 PST"]
[Termination "andriipalchuk won by checkmate"]

1. d4 {[%clk 0:02:40.2]} 1... d5 {[%clk 0:02:58.6]} 2. Nc3 {[%clk 0:02:37.5]}
2... Nf6 {[%clk 0:02:57.9]} 3. Bf4 {[%clk 0:02:33]} 3... c5 {[%clk 0:02:46.6]}
4. e3 {[%clk 0:02:31.7]} 4... cxd4 {[%clk 0:02:42.9]} 5. exd4 {[%clk 0:02:32.6]}
5... a6 {[%clk 0:02:43.3]} 6. Nf3 {[%clk 0:02:30.8]} 6... Nc6 {[%clk 0:02:43.8]}
7. Bd3 {[%clk 0:02:24.7]} 7... Bg4 {[%clk 0:02:43.1]} 8. Be2 {[%clk 0:02:22.7]}
8... e6 {[%clk 0:02:42.6]} 9. O-O {[%clk 0:02:20.8]} 9... Bd6 {[%clk 0:02:42]}
10. Ne5 {[%clk 0:02:20.5]} 10... Bxe2 {[%clk 0:02:41.4]} 11. Qxe2 {[%clk
0:02:15.5]} 11... Nxd4 {[%clk 0:02:38.8]} 12. Qd3 {[%clk 0:02:15.7]} 12... Nc6
{[%clk 0:02:37.8]} 13. Nxc6 {[%clk 0:02:15.9]} 13... bxc6 {[%clk 0:02:37.9]} 14.
Bxd6 {[%clk 0:02:16.8]} 14... Qxd6 {[%clk 0:02:38.1]} 15. Ne2 {[%clk 0:02:17.7]}
15... O-O {[%clk 0:02:37.1]} 16. Rad1 {[%clk 0:02:18.3]} 16... a5 {[%clk
0:02:31.8]} 17. c4 {[%clk 0:02:17.3]} 17... Qb4 {[%clk 0:02:31.1]} 18. cxd5
{[%clk 0:02:16.5]} 18... cxd5 {[%clk 0:02:32]} 19. b3 {[%clk 0:02:17.3]} 19...
Rfc8 {[%clk 0:02:31.4]} 20. Rc1 {[%clk 0:02:13.4]} 20... a4 {[%clk 0:02:31.3]}
21. Nd4 {[%clk 0:02:06.5]} 21... axb3 {[%clk 0:02:27.6]} 22. axb3 {[%clk
0:02:07.4]} 22... h6 {[%clk 0:02:23.6]} 23. Nc6 {[%clk 0:01:58.8]} 23... Qb7
{[%clk 0:02:19.4]} 24. Ne5 {[%clk 0:01:55]} 24... Rab8 {[%clk 0:02:17.1]} 25.
Rxc8+ {[%clk 0:01:43.5]} 25... Rxc8 {[%clk 0:02:14.7]} 26. h3 {[%clk 0:01:43]}
26... Qc7 {[%clk 0:02:07.4]} 27. Nf3 {[%clk 0:01:40.2]} 27... Qc3 {[%clk
0:02:05.4]} 28. Qb5 {[%clk 0:01:38.7]} 28... Qc6 {[%clk 0:02:00.4]} 29. Qd3
{[%clk 0:01:37.1]} 29... Qb6 {[%clk 0:02:00.5]} 30. g3 {[%clk 0:01:33.8]} 30...
Ne4 {[%clk 0:01:59.5]} 31. Kg2 {[%clk 0:01:34.2]} 31... Rc3 {[%clk 0:01:56.5]}
32. Qd4 {[%clk 0:01:33]} 32... Qxb3 {[%clk 0:01:53.4]} 33. Ne5 {[%clk
0:01:30.3]} 33... Rc2 {[%clk 0:01:07.4]} 34. Kg1 {[%clk 0:01:26.2]} 34... Nxg3
{[%clk 0:00:59.7]} 35. Qa7 {[%clk 0:01:26.4]} 35... Ne2+ {[%clk 0:00:25.1]} 36.
Kh1 {[%clk 0:01:26.5]} 36... Qxh3# {[%clk 0:00:24.3]} 0-1

[Event "*** Titled Tuesday Blitz"]
[Site "Chess.com"]
[Date "2021.03.02"]
[Round "6"]
[White "AlexPapasimakopoulos"]
[Black "MelihKaanCan"]
[Result "1-0"]
[WhiteElo "2592"]
[BlackElo "2393"]
[TimeControl "180+1"]
[EndTime "11:05:39 PST"]
[Termination "AlexPapasimakopoulos won on time"]

1. d4 {[%clk 0:03:00.9]} 1... Nf6 {[%clk 0:02:55.5]} 2. c4 {[%clk 0:03:01.4]}
2... c5 {[%clk 0:02:55.4]} 3. d5 {[%clk 0:03:01.5]} 3... e6 {[%clk 0:02:55.5]}
4. Nc3 {[%clk 0:03:01.8]} 4... exd5 {[%clk 0:02:56.1]} 5. cxd5 {[%clk
0:03:02.7]} 5... d6 {[%clk 0:02:56.8]} 6. Nf3 {[%clk 0:03:03.3]} 6... g6 {[%clk
0:02:57.3]} 7. Bf4 {[%clk 0:03:03.9]} 7... Bg7 {[%clk 0:02:49.9]} 8. Qa4+ {[%clk
0:03:04.1]} 8... Bd7 {[%clk 0:02:48.6]} 9. Qb3 {[%clk 0:03:04.6]} 9... Bc8
{[%clk 0:02:49]} 10. e4 {[%clk 0:03:04.1]} 10... O-O {[%clk 0:02:47.4]} 11. Be2
{[%clk 0:03:04.5]} 11... Na6 {[%clk 0:02:31]} 12. Nd2 {[%clk 0:03:03]} 12... Nc7
{[%clk 0:02:15.2]} 13. a4 {[%clk 0:02:56.1]} 13... Re8 {[%clk 0:02:08.6]} 14.
O-O {[%clk 0:02:56.1]} 14... b6 {[%clk 0:01:54.5]} 15. Rfe1 {[%clk 0:02:55.4]}
15... h6 {[%clk 0:01:23]} 16. h3 {[%clk 0:02:55.2]} 16... Bd7 {[%clk 0:01:19.8]}
17. Bxd6 {[%clk 0:02:38.3]} 17... Rc8 {[%clk 0:00:20.9]} 18. e5 {[%clk
0:02:27.9]} 18... Nh7 {[%clk 0:00:05.1]} 19. f4 {[%clk 0:02:27.7]} 19... g5
{[%clk 0:00:04.6]} 20. Bc4 {[%clk 0:02:04.3]} 20... gxf4 {[%clk 0:00:03.1]} 21.
Bxc7 {[%clk 0:02:04.1]} 21... Rxc7 {[%clk 0:00:02.9]} 22. d6 {[%clk 0:02:04.7]}
22... Rc8 {[%clk 0:00:02.8]} 23. Bxf7+ {[%clk 0:02:04.6]} 23... Kh8 {[%clk
0:00:03.7]} 24. Bxe8 {[%clk 0:02:01.9]} 24... Bxe8 {[%clk 0:00:04.2]} 25. Nf3
{[%clk 0:01:59.6]} 25... Ng5 {[%clk 0:00:04.2]} 26. Nd5 {[%clk 0:01:45]} 26...
Bc6 {[%clk 0:00:04.1]} 27. Rad1 {[%clk 0:01:44.4]} 27... Nxf3+ {[%clk
0:00:01.8]} 28. Qxf3 {[%clk 0:01:43.8]} 28... Qg5 {[%clk 0:00:02.2]} 29. Qxf4
{[%clk 0:01:40.5]} 29... Qg6 {[%clk 0:00:01.6]} 30. Qg4 {[%clk 0:01:34.5]} 1-0

[Event "*** Titled Tuesday Blitz"]
[Site "Chess.com"]
[Date "2021.03.02"]
[Round "6"]
[White "GCamachoMartinez"]
[Black "Grandmaster1369"]
[Result "0-1"]
[WhiteElo "2287"]
[BlackElo "2428"]
[TimeControl "180+1"]
[EndTime "11:05:39 PST"]
[Termination "Grandmaster1369 won by resignation"]

1. d4 {[%clk 0:03:00.9]} 1... Nf6 {[%clk 0:02:59.2]} 2. c4 {[%clk 0:03:00.7]}
2... e6 {[%clk 0:02:58.6]} 3. g3 {[%clk 0:03:01.1]} 3... Bb4+ {[%clk 0:02:57.1]}
4. Nd2 {[%clk 0:02:59.8]} 4... d5 {[%clk 0:02:55]} 5. Nf3 {[%clk 0:02:59.8]}
5... O-O {[%clk 0:02:54.6]} 6. Bg2 {[%clk 0:02:59.2]} 6... c5 {[%clk 0:02:53.7]}
7. dxc5 {[%clk 0:02:40.2]} 7... Bxc5 {[%clk 0:02:54.6]} 8. O-O {[%clk
0:02:37.9]} 8... b6 {[%clk 0:02:51.1]} 9. Qc2 {[%clk 0:02:30.3]} 9... Bb7 {[%clk
0:02:50.3]} 10. Ne5 {[%clk 0:02:25.1]} 10... Nbd7 {[%clk 0:02:43.9]} 11. Nxd7
{[%clk 0:02:22.8]} 11... Qxd7 {[%clk 0:02:44.5]} 12. a3 {[%clk 0:02:04.4]} 12...
a5 {[%clk 0:02:23]} 13. Nb3 {[%clk 0:01:32]} 13... Be7 {[%clk 0:01:47.3]} 14.
cxd5 {[%clk 0:01:24]} 14... Bxd5 {[%clk 0:01:45.1]} 15. e4 {[%clk 0:01:16.8]}
15... Rac8 {[%clk 0:01:38.1]} 16. Qd3 {[%clk 0:01:15.7]} 16... Bc4 {[%clk
0:01:31.1]} 17. Qxd7 {[%clk 0:01:10]} 17... Nxd7 {[%clk 0:01:30.9]} 18. Nd2
{[%clk 0:01:10.9]} 18... Bxf1 {[%clk 0:01:29.7]} 19. Nxf1 {[%clk 0:01:11.8]}
19... Bf6 {[%clk 0:01:28.6]} 20. Rb1 {[%clk 0:01:04]} 20... Nc5 {[%clk
0:01:24.7]} 21. Be3 {[%clk 0:01:02.2]} 21... Rfd8 {[%clk 0:01:19.6]} 22. Nd2
{[%clk 0:01:01.7]} 22... Bd4 {[%clk 0:01:15]} 23. Nc4 {[%clk 0:00:54.4]} 23...
Bxe3 {[%clk 0:01:12.1]} 24. Nxe3 {[%clk 0:00:55.3]} 24... Nb3 {[%clk 0:01:04.7]}
25. Bf1 {[%clk 0:00:46.1]} 25... Nd2 {[%clk 0:00:47.6]} 26. Re1 {[%clk
0:00:44.3]} 26... Nf3+ {[%clk 0:00:46.2]} 0-1

[Event "*** Titled Tuesday Blitz"]
[Site "Chess.com"]
[Date "2021.03.02"]
[Round "6"]
[White "MillyNeuf"]
[Black "pfalcon1949"]
[Result "1-0"]
[WhiteElo "2272"]
[BlackElo "2026"]
[TimeControl "180+1"]
[EndTime "11:05:40 PST"]
[Termination "MillyNeuf won by resignation"]

1. e4 {[%clk 0:03:00.9]} 1... c5 {[%clk 0:02:59.1]} 2. Nc3 {[%clk 0:02:59.8]}
2... Nc6 {[%clk 0:02:59.2]} 3. g3 {[%clk 0:03:00.1]} 3... g6 {[%clk 0:02:59.7]}
4. Bg2 {[%clk 0:03:00.6]} 4... Bg7 {[%clk 0:03:00.2]} 5. d3 {[%clk 0:03:01.3]}
5... e5 {[%clk 0:03:00.2]} 6. Be3 {[%clk 0:03:01.4]} 6... Nge7 {[%clk
0:03:00.7]} 7. Bxc5 {[%clk 0:03:01.4]} 7... d6 {[%clk 0:03:01.3]} 8. Be3 {[%clk
0:03:01.2]} 8... Be6 {[%clk 0:03:01.5]} 9. Qd2 {[%clk 0:02:57.1]} 9... Qd7
{[%clk 0:03:02.4]} 10. Bh6 {[%clk 0:02:55.6]} 10... Bxh6 {[%clk 0:03:00.8]} 11.
Qxh6 {[%clk 0:02:56.5]} 11... O-O-O {[%clk 0:03:01]} 12. O-O-O {[%clk
0:02:52.5]} 12... Kb8 {[%clk 0:03:01.3]} 13. Qd2 {[%clk 0:02:51.5]} 13... Rc8
{[%clk 0:03:01.7]} 14. Kb1 {[%clk 0:02:50.5]} 14... Nd4 {[%clk 0:03:02.1]} 15.
Nge2 {[%clk 0:02:50.1]} 15... Nec6 {[%clk 0:02:58.5]} 16. Rc1 {[%clk 0:02:49.7]}
16... Nxe2 {[%clk 0:02:55.9]} 17. Nxe2 {[%clk 0:02:50.6]} 17... Rc7 {[%clk
0:02:47.8]} 18. d4 {[%clk 0:02:41.3]} 18... Bc4 {[%clk 0:02:37.6]} 19. dxe5
{[%clk 0:02:30.3]} 19... Nxe5 {[%clk 0:02:37.6]} 20. Nc3 {[%clk 0:02:21.9]}
20... Rhc8 {[%clk 0:02:34.8]} 21. f4 {[%clk 0:02:18.7]} 21... Ng4 {[%clk
0:02:16.6]} 22. h3 {[%clk 0:02:14.8]} 22... Nh6 {[%clk 0:02:15.6]} 23. Rcd1
{[%clk 0:02:11.4]} 23... Rd8 {[%clk 0:02:03.5]} 24. Nd5 {[%clk 0:02:01.4]} 24...
Bxd5 {[%clk 0:02:00.6]} 25. Qxd5 {[%clk 0:02:02.3]} 25... Rc5 {[%clk 0:01:59.6]}
26. Qxc5 {[%clk 0:01:58.4]} 26... dxc5 {[%clk 0:01:59.4]} 27. Rxd7 {[%clk
0:01:58.4]} 27... Rxd7 {[%clk 0:02:00.3]} 28. Kc1 {[%clk 0:01:58.4]} 28... Re7
{[%clk 0:01:53.7]} 29. Rd1 {[%clk 0:01:54.9]} 29... Kc7 {[%clk 0:01:51.5]} 30.
c3 {[%clk 0:01:52]} 30... f6 {[%clk 0:01:42.3]} 31. Kc2 {[%clk 0:01:45.9]} 31...
Nf7 {[%clk 0:01:42.7]} 32. Rd5 {[%clk 0:01:38.2]} 32... b6 {[%clk 0:01:42.6]}
33. b4 {[%clk 0:01:36.8]} 33... cxb4 {[%clk 0:01:36.5]} 34. cxb4 {[%clk
0:01:37.7]} 34... Nd6 {[%clk 0:01:30.5]} 35. Kd3 {[%clk 0:01:36.8]} 35... f5
{[%clk 0:01:26.2]} 36. e5 {[%clk 0:01:36.4]} 36... Nb7 {[%clk 0:01:24.5]} 37.
Kc3 {[%clk 0:01:30.4]} 37... a5 {[%clk 0:01:24.7]} 38. a3 {[%clk 0:01:27.7]}
38... axb4+ {[%clk 0:01:17.9]} 39. Kxb4 {[%clk 0:01:28.6]} 39... Nd8 {[%clk
0:01:17.2]} 40. Rd6 {[%clk 0:01:25.1]} 40... Rd7 {[%clk 0:00:59.9]} 41. Rxd7+
{[%clk 0:01:24.2]} 41... Kxd7 {[%clk 0:01:00.2]} 42. Bd5 {[%clk 0:01:24.3]}
42... h6 {[%clk 0:00:57.1]} 43. Kb5 {[%clk 0:01:21.1]} 43... Kc7 {[%clk
0:00:56.9]} 44. h4 {[%clk 0:01:18.9]} 44... Nb7 {[%clk 0:00:47]} 45. Bxb7 {[%clk
0:01:18.5]} 1-0

[Event "*** Titled Tuesday Blitz"]
[Site "Chess.com"]
[Date "2021.03.02"]
[Round "6"]
[White "mamonika"]
[Black "Kaslask"]
[Result "0-1"]
[WhiteElo "2021"]
[BlackElo "2283"]
[TimeControl "180+1"]
[EndTime "11:05:46 PST"]
[Termination "Kaslask won on time"]

1. e4 {[%clk 0:03:00.9]} 1... c5 {[%clk 0:02:59]} 2. Nf3 {[%clk 0:03:00.5]} 2...
e6 {[%clk 0:02:58.6]} 3. d4 {[%clk 0:03:00.3]} 3... cxd4 {[%clk 0:02:58.5]} 4.
Nxd4 {[%clk 0:03:01.2]} 4... Nc6 {[%clk 0:02:58.2]} 5. Nc3 {[%clk 0:02:59.9]}
5... Qc7 {[%clk 0:02:58]} 6. Be2 {[%clk 0:02:41]} 6... a6 {[%clk 0:02:51.4]} 7.
Be3 {[%clk 0:02:33.9]} 7... Nf6 {[%clk 0:02:50]} 8. O-O {[%clk 0:02:26.2]} 8...
d6 {[%clk 0:02:30.4]} 9. Nxc6 {[%clk 0:02:21.1]} 9... bxc6 {[%clk 0:02:29.3]}
10. f4 {[%clk 0:01:44.3]} 10... Be7 {[%clk 0:02:23.4]} 11. Qe1 {[%clk
0:01:36.8]} 11... O-O {[%clk 0:02:19.2]} 12. Qg3 {[%clk 0:01:24.4]} 12... e5
{[%clk 0:02:13.8]} 13. fxe5 {[%clk 0:01:14.1]} 13... dxe5 {[%clk 0:02:13]} 14.
Bg5 {[%clk 0:00:59.2]} 14... Ne8 {[%clk 0:02:00.8]} 15. Kh1 {[%clk 0:00:33.4]}
15... Bxg5 {[%clk 0:01:52.5]} 16. Qxg5 {[%clk 0:00:33.3]} 16... Be6 {[%clk
0:01:51.1]} 17. Rad1 {[%clk 0:00:30.3]} 17... f6 {[%clk 0:01:50]} 18. Qh4 {[%clk
0:00:26.7]} 18... Nd6 {[%clk 0:01:48.6]} 19. Rf3 {[%clk 0:00:17.9]} 19... Nb5
{[%clk 0:01:44.9]} 20. Na4 {[%clk 0:00:10.5]} 20... Nd4 {[%clk 0:01:40.8]} 21.
Re3 {[%clk 0:00:07.5]} 21... Rad8 {[%clk 0:01:36]} 22. Bd3 {[%clk 0:00:06.8]}
22... Qe7 {[%clk 0:01:30.5]} 23. Nc3 {[%clk 0:00:05.6]} 23... Rd7 {[%clk
0:01:26.6]} 24. Rde1 {[%clk 0:00:04.7]} 24... Rfd8 {[%clk 0:01:23.3]} 25. h3
{[%clk 0:00:02.9]} 25... Nb5 {[%clk 0:01:18.5]} 26. Nxb5 {[%clk 0:00:02.3]}
26... axb5 {[%clk 0:01:16.3]} 0-1

[Event "*** Titled Tuesday Blitz"]
[Site "Chess.com"]
[Date "2021.03.02"]
[Round "6"]
[White "wadsy27"]
[Black "Loy_Konstantin"]
[Result "1-0"]
[WhiteElo "2531"]
[BlackElo "2347"]
[TimeControl "180+1"]
[EndTime "11:05:47 PST"]
[Termination "wadsy27 won on time"]

1. c4 {[%clk 0:03:00.9]} 1... c5 {[%clk 0:02:59.2]} 2. g3 {[%clk 0:02:59.4]}
2... g6 {[%clk 0:02:59.2]} 3. Bg2 {[%clk 0:02:59.2]} 3... Bg7 {[%clk 0:02:59.8]}
4. Nc3 {[%clk 0:02:59.6]} 4... Nf6 {[%clk 0:03:00.3]} 5. Nf3 {[%clk 0:03:00.1]}
5... O-O {[%clk 0:03:00.8]} 6. d4 {[%clk 0:03:00.1]} 6... cxd4 {[%clk
0:03:00.7]} 7. Nxd4 {[%clk 0:03:01]} 7... Nc6 {[%clk 0:03:01.2]} 8. O-O {[%clk
0:03:01.4]} 8... d6 {[%clk 0:03:01.8]} 9. Nxc6 {[%clk 0:03:00.8]} 9... bxc6
{[%clk 0:03:02.7]} 10. Bxc6 {[%clk 0:03:01]} 10... Rb8 {[%clk 0:03:03.3]} 11.
Bg2 {[%clk 0:03:01.7]} 11... Qa5 {[%clk 0:03:03.7]} 12. Qc2 {[%clk 0:03:00.9]}
12... Bb7 {[%clk 0:03:03.5]} 13. Bd2 {[%clk 0:02:53]} 13... Bxg2 {[%clk
0:03:02.1]} 14. Kxg2 {[%clk 0:02:53.9]} 14... Rfc8 {[%clk 0:03:02.1]} 15. b3
{[%clk 0:02:52.4]} 15... d5 {[%clk 0:03:02]} 16. Na4 {[%clk 0:02:32.7]} 16...
Qa6 {[%clk 0:03:00.7]} 17. c5 {[%clk 0:02:30.2]} 17... Ne4 {[%clk 0:02:25.7]}
18. Bf4 {[%clk 0:02:27.8]} 18... e5 {[%clk 0:02:11.8]} 19. Be3 {[%clk
0:02:27.2]} 19... f5 {[%clk 0:02:05.8]} 20. f3 {[%clk 0:02:26]} 20... Nf6 {[%clk
0:02:01.4]} 21. Bg5 {[%clk 0:02:21.2]} 21... Nd7 {[%clk 0:01:54.9]} 22. Rad1
{[%clk 0:02:15.5]} 22... d4 {[%clk 0:01:46.7]} 23. e3 {[%clk 0:02:05.4]} 23...
h6 {[%clk 0:01:33.8]} 24. Be7 {[%clk 0:01:59.9]} 24... Qe6 {[%clk 0:01:32.6]}
25. Bd6 {[%clk 0:01:59.9]} 25... Qxd6 {[%clk 0:01:31.1]} 26. Qc4+ {[%clk
0:01:59.8]} 26... Kf8 {[%clk 0:01:20.8]} 27. cxd6 {[%clk 0:01:59.1]} 27... Rxc4
{[%clk 0:01:20.7]} 28. bxc4 {[%clk 0:01:59.7]} 28... Rb4 {[%clk 0:01:18.8]} 29.
c5 {[%clk 0:01:49.5]} 29... Rxa4 {[%clk 0:01:13.2]} 30. c6 {[%clk 0:01:49]}
30... Nb6 {[%clk 0:01:06.4]} 31. exd4 {[%clk 0:01:48.2]} 31... exd4 {[%clk
0:01:04.1]} 32. Rfe1 {[%clk 0:01:43.3]} 32... Rxa2+ {[%clk 0:01:03.1]} 33. Kg1
{[%clk 0:01:39.5]} 33... Ra5 {[%clk 0:00:41.5]} 34. d7 {[%clk 0:01:38.4]} 34...
Bf6 {[%clk 0:00:18.3]} 35. c7 {[%clk 0:01:37.4]} 1-0